bitfinex/quotes_SOLUSD_20250531
["timestamp","ask_amount","ask_price","bid_price","bid_amount"]
[1748683971245,18.58952082,153.97,153.93,8.01493864]
[1748683971546,18.58952082,153.96,153.93,1.5186]
[1748683972122,18.58952082,153.96,153.93,8.01499317]
[1748683974852,16.23376283,154.01,153.93,8.01499317]
[1748683974853,18.58952082,153.97,153.93,8.01499317]
[1748683975064,6.49405214,153.99,153.93,8.01499317]
[1748683975065,18.58952082,153.98,153.93,26.60451399]
[1748683975436,48.48592414,154.04,153.95,6.49561545]
[1748683975733,18.58952082,153.99,153.95,6.49561545]
[1748683976158,48.48592414,154.04,153.95,6.49561545]
[1748683976358,6.49224177,154.03,153.97,18.58952082]
[1748683976548,18.58952082,154.03,153.98,18.58952082]
[1748683977054,18.58952082,154.04,153.99,18.73168239]
[1748683977445,18.58952082,154.03,153.99,18.73168239]
[1748683977659,18.58952082,154.03,154.0,6.49350649]
[1748683977964,6.49111461,154.06,154.0,6.49350649]
[1748683978140,18.58952082,154.03,154.0,6.49350649]
[1748683978341,18.58952082,154.02,153.99,6.63600771]
[1748683981170,18.58952082,154.03,153.99,6.63600771]
[1748683981946,6.49097754,154.06,154.01,18.58952082]
[1748683982145,8.01853598,154.08,154.0,1.6225]
[1748683982146,25.08012168,154.07,154.02,18.58952082]
[1748683982455,18.58952082,154.07,154.02,18.58952082]
[1748683982765,18.58952082,154.05,154.01,0.14216157]
[1748683983674,14.50884591,154.08,154.01,0.14216157]
[1748683983845,18.58952082,154.05,154.01,6.63507092]
[1748683985041,18.58952082,154.06,154.01,25.22459174]
[1748683985464,14.508838,154.08,154.01,25.22459174]
[1748683985666,18.58952082,154.06,154.01,25.22459174]
[1748683985871,18.58952082,154.05,154.01,6.63507092]
[1748683992447,18.58952082,154.06,154.01,25.22459174]
[1748683992647,18.58952082,154.07,154.02,18.58952082]
[1748683994454,8.01853598,154.08,154.03,25.08176259]
[1748683994756,26.6080568,154.08,154.03,25.08176259]
[1748683994957,18.58952082,154.07,154.03,6.49224177]
[1748683997871,18.58952082,154.06,154.02,6.49253642]
[1748683998066,18.58952082,154.05,154.01,32.49299258]
[1748683998286,6.49061268,154.07,153.99,16.23471854]
[1748683998287,18.58952082,154.02,153.99,6.49377004]
[1748683998475,18.58952082,154.02,153.98,6.49416524]
[1748683998476,18.58952082,154.01,153.98,6.49416524]
[1748683998827,18.58952082,154.0,153.97,17.01459509]
[1748683999652,18.58952082,154.01,153.97,17.01459509]
[1748684003670,6.49249567,154.03,153.97,17.01459509]
[1748684003870,26.0,154.05,153.97,35.60411591]
[1748684003871,18.58952082,154.02,153.97,35.60411591]
[1748684005806,18.58952082,154.03,153.98,18.73168239]
[1748684006698,18.58952082,154.03,153.99,18.58952082]
[1748684006900,18.58952082,154.03,154.0,6.49350649]
[1748684007078,18.58952082,154.04,154.0,6.49350649]
[1748684007394,18.58952082,154.04,154.0,25.08302731]
[1748684007784,18.58952082,154.04,154.0,6.49350649]
[1748684010577,18.58952082,154.05,154.0,25.08302731]
[1748684011607,6.49072141,154.07,154.03,0.14216157]
[1748684011608,18.58952082,154.07,154.03,0.14216157]
[1748684012393,18.58952082,154.07,153.99,6.2471]
[1748684012394,6.49224177,154.03,153.97,6.4947717]
[1748684012706,18.58952082,154.0,153.97,6.4947717]
[1748684013086,18.58952082,154.01,153.97,6.4947717]
[1748684014900,25.08269247,154.01,153.97,6.4947717]
[1748684015105,25.08269247,154.01,153.97,0.14216157]
[1748684015290,146.9,154.11,154.0,37.38133125]
[1748684015486,18.58952082,154.08,154.02,18.58952082]
[1748684015686,18.58952082,154.07,154.01,18.58952082]
[1748684016287,18.58952082,154.07,154.02,6.49266329]
[1748684016494,18.58952082,154.07,154.02,25.08218411]
[1748684016702,18.58952082,154.09,154.04,18.58952082]
[1748684017404,18.58952082,154.08,154.03,58.56952082]
[1748684018385,18.58952082,154.08,154.04,6.4918203]
[1748684019279,18.58952082,154.1,154.05,18.73168239]
[1748684019879,18.58952082,154.11,154.06,18.58952082]
[1748684020083,18.58952082,154.12,154.07,18.58952082]
[1748684020609,18.58952082,154.12,154.08,6.49013499]
[1748684021689,144.58582082,154.16,154.05,0.14216157]
[1748684021690,18.58952082,154.09,154.05,0.14216157]
[1748684022418,6.4878656,154.14,154.06,25.28269471]
[1748684022627,103.24340988,154.16,154.08,18.58952082]
[1748684022628,18.58952082,154.13,154.08,18.58952082]
[1748684023195,18.58952082,154.12,154.07,25.22223863]
[1748684023395,32.4871878,154.15,154.07,25.22223863]
[1748684023396,18.58952082,154.11,154.07,6.63271781]
[1748684025217,18.58952082,154.1,154.05,58.54952082]
[1748684025414,18.58952082,154.08,154.0,87.8]
[1748684025611,18.58952082,154.03,153.98,20.20902082]
[1748684025904,18.58952082,154.04,153.99,18.58952082]
[1748684026331,18.58952082,154.04,154.0,0.14216157]
[1748684026546,18.58952082,154.05,153.99,41.31723982]
[1748684026705,18.58952082,154.06,154.01,18.58952082]
[1748684027036,6.49013499,154.08,153.98,1.6195]
[1748684027037,18.58952082,154.02,153.98,1.6195]
[1748684027209,18.58952082,154.01,153.98,1.6195]
[1748684027398,26.0,154.06,153.98,1.6195]
[1748684027399,18.58952082,154.02,153.98,1.6195]
[1748684027908,26.0,154.06,153.97,0.14216157]
[1748684027909,18.58952082,154.01,153.97,0.14216157]
[1748684028548,36.42,154.06,153.97,18.58952082]
[1748684028549,18.58952082,154.02,153.97,18.58952082]
[1748684028700,25.08231986,154.02,153.97,25.08422223]
[1748684029837,18.58952082,153.98,153.93,6.49627874]
[1748684030027,18.58952082,154.0,153.92,1.64356781]
[1748684030028,18.58952082,153.95,153.92,1.64356781]
[1748684030219,18.58952082,153.93,153.92,1.64356781]
[1748684030935,18.58952082,153.93,153.85,40.18]
[1748684031114,18.58952082,153.89,153.86,0.14216157]
[1748684031308,6.3036,153.94,153.85,46.67980815]
[1748684031309,18.58952082,153.9,153.85,46.67980815]
[1748684031838,18.08952082,153.9,153.86,0.14216157]
[1748684032033,27.8717483,153.9,153.86,6.64145953]
[1748684032408,27.8717483,153.9,153.86,6.49929796]
[1748684033710,6.49657893,153.93,153.86,6.49929796]
[1748684033913,27.8717483,153.91,153.86,34.37104626]
[1748684034822,27.8717483,153.92,153.87,28.01390987]
[1748684035211,66.83845402,153.96,153.87,28.01390987]
[1748684035212,27.8717483,153.93,153.88,27.8717483]
[1748684035430,27.8717483,153.92,153.87,46.8057203]
[1748684036131,27.8717483,153.92,153.88,6.49857031]
[1748684039136,27.8717483,153.91,153.88,6.49857031]
[1748684041243,27.8717483,153.92,153.88,6.49857031]
[1748684041623,6.49624633,153.94,153.87,0.14216157]
[1748684041624,27.8717483,153.89,153.87,0.14216157]
[1748684041839,27.8717483,153.89,153.86,0.14216157]
[1748684042923,6.49624633,153.94,153.86,0.14216157]
[1748684042924,27.8717483,153.9,153.86,0.14216157]
[1748684043335,27.8717483,153.9,153.87,6.49899265]
[1748684044026,27.8717483,153.92,153.88,0.14216157]
[1748684044433,27.8717483,153.91,153.88,0.14216157]
[1748684045540,27.8717483,153.92,153.88,34.51219417]
[1748684046528,27.8717483,153.92,153.88,6.64044587]
[1748684048555,27.8717483,153.91,153.88,6.64044587]
[1748684050147,27.8717483,153.92,153.88,6.64044587]
[1748684050656,27.8717483,153.91,153.88,6.64044587]
[1748684052364,27.8717483,153.89,153.83,11.9861]
[1748684052661,27.8717483,153.87,153.83,11.9861]
[1748684052836,27.8717483,153.87,153.84,6.50026001]
[1748684053330,48.73613095,153.94,153.78,181.36]
[1748684053331,27.8717483,153.85,153.79,1.5989]
[1748684053554,27.8717483,153.84,153.8,66.1]
[1748684053873,27.8717483,153.9,153.78,110.2753]
[1748684053874,27.8717483,153.82,153.78,144.16]
[1748684054158,18.59969608,153.8,153.77,8.14821179]
[1748684054336,10.5,153.86,153.78,18.933972]
[1748684054541,18.59969608,153.84,153.79,18.59969608]
[1748684054844,18.59969608,153.84,153.8,0.14216157]
[1748684055259,18.59969608,153.84,153.79,18.59969608]
[1748684055639,18.59969608,153.84,153.8,0.14216157]
[1748684056052,18.59969608,153.84,153.81,40.12]
[1748684056257,18.59969608,153.84,153.82,6.50110518]
[1748684056646,18.59969608,153.85,153.82,6.50110518]
[1748684056856,18.59969608,153.86,153.82,6.50110518]
[1748684057348,153.39822405,153.89,153.82,6.50110518]
[1748684057548,18.59969608,153.86,153.82,6.50110518]
[1748684057862,18.59969608,153.87,153.82,25.10080126]
[1748684058449,18.59969608,153.87,153.83,0.14216157]
[1748684059251,18.59969608,153.88,153.83,18.74185765]
[1748684059675,26.0,153.92,153.85,0.14216157]
[1748684059876,18.59969608,153.9,153.85,18.74185765]
[1748684060087,18.59969608,153.9,153.86,40.1]
[1748684060764,18.59969608,153.9,153.87,6.49899265]
[1748684061142,18.59969608,153.91,153.87,6.49899265]
[1748684062070,18.59969608,153.9,153.87,6.49899265]
[1748684063176,18.59969608,153.91,153.87,6.49899265]
[1748684064166,18.59969608,153.92,153.87,25.09868873]
[1748684064399,18.59969608,153.92,153.88,0.14216157]
[1748684064547,18.59969608,153.94,153.89,18.59969608]
[1748684064885,18.59969608,153.94,153.91,0.14216157]
[1748684065673,18.59969608,153.95,153.91,0.14216157]
[1748684065979,57.73806438,153.98,153.91,0.14216157]
[1748684065980,18.59969608,153.96,153.91,18.74185765]
[1748684066154,31.73806438,153.98,153.93,6.49645942]
[1748684066155,18.59969608,153.97,153.93,6.49645942]
[1748684066672,18.59969608,153.96,153.93,6.49645942]
[1748684067358,18.59969608,153.94,153.92,6.49674122]
[1748684067557,18.59969608,153.94,153.91,6.63933266]
[1748684067748,18.59969608,153.93,153.9,46.57756726]
[1748684068368,18.59969608,153.94,153.9,46.57756726]
[1748684070473,18.59969608,153.94,153.9,6.49756726]
[1748684070656,18.59969608,153.94,153.9,46.55756726]
[1748684072384,18.59969608,153.93,153.9,40.06]
[1748684072560,18.59969608,153.92,153.88,32.49839462]
[1748684072879,18.59969608,153.91,153.88,72.53839462]
[1748684073092,18.59969608,153.91,153.86,18.59969608]
[1748684073093,18.59969608,153.9,153.85,10.5]
[1748684073283,6.49604843,153.94,153.85,10.5]
[1748684073284,18.59969608,153.87,153.85,10.5]
[1748684073580,18.59969608,153.87,153.84,40.06]
[1748684073968,18.59969608,153.88,153.84,40.06]
[1748684075155,18.59969608,153.88,153.83,25.10020838]
[1748684075388,18.59969608,153.88,153.84,40.04]
[1748684077386,25.09834023,153.88,153.84,40.04]
[1748684078287,18.59969608,153.87,153.83,46.5205123]
[1748684079866,18.59969608,153.87,153.83,6.5005123]
[1748684080092,18.59969608,153.87,153.83,46.5205123]
[1748684080590,18.59969608,153.88,153.84,18.59969608]
[1748684080775,18.59969608,153.89,153.85,0.14216157]
[1748684080981,18.59969608,153.88,153.85,0.14216157]
[1748684081179,18.59969608,153.88,153.84,40.02]
[1748684081505,18.59969608,153.87,153.84,40.02]
[1748684082283,16.32549205,153.87,153.84,40.02]
[1748684083909,22.82456253,153.87,153.84,40.02]
[1748684084470,16.32549205,153.87,153.84,40.02]
[1748684085080,22.82449458,153.87,153.84,40.02]
[1748684085291,22.82449458,153.87,153.81,36.5]
[1748684085292,18.59969608,153.85,153.8,1.587]
[1748684085487,18.59969608,153.82,153.79,40.0]
[1748684085795,18.59969608,153.82,153.78,18.64964886]
[1748684086109,18.59969608,153.82,153.79,40.02]
[1748684086282,25.10122783,153.81,153.77,8.14825139]
[1748684086484,18.59969608,153.8,153.77,41.66517108]
[1748684086709,18.59969608,153.8,153.77,1.64517108]
[1748684086907,18.59969608,153.79,153.77,1.64517108]
[1748684087101,6.50153175,153.81,153.73,40.04]
[1748684087102,18.59969608,153.78,153.73,40.04]
[1748684087298,18.59969608,153.76,153.73,40.04]
[1748684087490,18.59969608,153.77,153.73,46.5445783]
[1748684087691,18.59969608,153.77,153.73,46.5645783]
[1748684089516,18.59969608,153.78,153.73,65.16427438]
[1748684089833,18.59969608,153.79,153.73,65.16427438]
[1748684090293,18.59969608,153.79,153.74,40.06]
[1748684090492,6.50195804,153.8,153.75,6.50406504]
[1748684090702,18.59969608,153.79,153.75,6.50406504]
[1748684091116,18.59969608,153.78,153.75,6.50406504]
[1748684091710,18.59969608,153.77,153.74,6.50448809]
[1748684091918,18.59969608,153.77,153.74,46.56448809]
[1748684094720,18.59969608,153.77,153.74,6.50448809]
[1748684094897,6.50209179,153.8,153.74,6.50448809]
[1748684094898,18.59969608,153.78,153.74,6.50448809]
[1748684095099,18.59969608,153.81,153.76,18.59969608]
[1748684095306,18.59969608,153.81,153.77,40.04]
[1748684096795,18.59969608,153.81,153.78,6.5027962]
[1748684103408,42.91750235,153.84,153.8,18.59969608]
[1748684103409,10.41710466,153.84,153.8,18.59969608]
[1748684103610,10.41710466,153.84,153.81,58.74185765]
[1748684103808,10.41710466,153.84,153.83,18.59969608]
[1748684104009,10.41710466,153.84,153.83,18.74185765]
[1748684104304,10.41710466,153.84,153.82,0.14216157]
[1748684104627,10.41710466,153.84,153.83,6.50068257]
[1748684104820,10.41710466,153.84,153.82,6.64311127]
[1748684107230,10.41710466,153.84,153.82,6.5009497]
[1748684112039,10.41710466,153.84,153.82,46.4609497]
[1748684113363,10.41710466,153.84,153.82,39.96]
[1748684114411,10.41710466,153.84,153.82,46.46090831]
[1748684115950,10.41710466,153.84,153.82,39.96]
[1748684116322,10.41710466,153.84,153.82,46.4610761]
[1748684119341,10.41710466,153.84,153.82,39.96]
[1748684119529,29.01680074,153.84,153.82,39.96]
[1748684121423,29.01680074,153.84,153.8,6.64411215]
[1748684121622,29.01680074,153.84,153.79,60.17003441]
[1748684121623,18.59969608,153.82,153.79,6.64445136]
[1748684121836,18.59969608,153.82,153.79,6.50228979]
[1748684122048,18.59969608,153.82,153.78,6.50263281]
[1748684122261,18.59969608,153.82,153.78,46.46263281]
[1748684122528,16.91741298,153.84,153.8,18.59969608]
[1748684122529,10.41710466,153.84,153.8,18.59969608]
[1748684123024,29.01680074,153.84,153.79,37.53366808]
[1748684123224,18.59969608,153.83,153.79,18.933972]
[1748684123920,18.59969608,153.83,153.79,25.43594649]
[1748684124929,6.50000044,153.85,153.79,25.43594649]
[1748684124930,18.59969608,153.84,153.79,44.03564257]
[1748684126138,18.59969608,153.83,153.79,0.14216157]
[1748684126855,6.50048959,153.84,153.78,39.96]
[1748684126856,18.59969608,153.82,153.78,39.96]
[1748684127550,18.59969608,153.82,153.78,6.50262489]
[1748684127738,18.59969608,153.82,153.78,46.46262489]
[1748684128050,6.50048959,153.84,153.78,39.96]
[1748684128051,18.59969608,153.81,153.78,39.96]
[1748684128247,18.59969608,153.81,153.77,16.96302163]
[1748684128452,6.50134928,153.82,153.77,10.46]
[1748684128453,18.59969608,153.8,153.77,10.46]
[1748684128750,18.59969608,153.78,153.72,1.6014]
[1748684128964,48.75411224,153.82,153.72,1.6014]
[1748684128965,18.59969608,153.75,153.72,8.10671223]
[1748684129331,18.59969608,153.75,153.72,6.50531223]
[1748684129529,18.59969608,153.75,153.72,0.14216157]
[1748684130041,18.59969608,153.75,153.71,46.46562604]
[1748684130929,18.59969608,153.75,153.72,0.14216157]
[1748684131149,18.59969608,153.76,153.72,37.53366808]
[1748684131357,18.59969608,153.77,153.72,37.53366808]
[1748684132137,18.59969608,153.77,153.73,6.5049112]
[1748684132756,25.10297111,153.77,153.72,44.03883784]
[1748684133061,18.59969608,153.76,153.72,6.64733133]
[1748684135641,18.59969608,153.76,153.72,46.48516976]
[1748684136656,18.59969608,153.75,153.72,39.98]
[1748684136859,18.59969608,153.74,153.72,39.98]
[1748684137060,18.59969608,153.75,153.72,39.98]
[1748684139162,18.59969608,153.75,153.72,46.4853259]
[1748684139662,18.59969608,153.75,153.72,39.98]
[1748684139861,18.59969608,153.75,153.71,46.48557188]
[1748684141869,18.59969608,153.75,153.7,64.27585481]
[1748684141870,18.59969608,153.73,153.7,0.8843483]
[1748684142068,18.59969608,153.73,153.7,40.8643483]
[1748684142367,18.59969608,153.73,153.7,0.8843483]
[1748684142534,18.59969608,153.72,153.7,0.8843483]
[1748684142740,18.59969608,153.73,153.7,0.8843483]
[1748684143249,26.0,153.79,153.71,18.59969608]
[1748684143449,18.59969608,153.76,153.71,18.59969608]
[1748684143852,18.59969608,153.77,153.73,0.14216157]
[1748684144051,18.59969608,153.78,153.73,18.74185765]
[1748684144965,18.59969608,153.77,153.74,6.50448809]
[1748684148371,18.59969608,153.77,153.7,17.14980047]
[1748684148372,18.59969608,153.76,153.71,39.98]
[1748684148670,18.59969608,153.76,153.71,58.57969608]
[1748684149000,18.59969608,153.76,153.71,18.74185765]
[1748684149171,18.59969608,153.75,153.7,59.46404438]
[1748684149353,18.59969608,153.75,153.71,0.14216157]
[1748684149673,18.59969608,153.75,153.71,6.64791916]
[1748684149879,18.59969608,153.76,153.71,25.24761524]
[1748684150675,18.59969608,153.77,153.73,0.14216157]
[1748684150980,36.4,153.81,153.73,0.14216157]
[1748684150981,18.59969608,153.78,153.73,18.74185765]
[1748684152476,18.59969608,153.78,153.74,6.50448809]
[1748684152657,18.59969608,153.77,153.74,6.50448809]
[1748684154259,25.10310653,153.77,153.7,0.8843483]
[1748684154557,18.59969608,153.75,153.71,46.48575759]
[1748684154757,18.59969608,153.75,153.71,6.50575759]
[1748684155177,18.59969608,153.76,153.72,0.14216157]
[1748684156367,18.59969608,153.74,153.7,0.8843483]
[1748684156677,18.59969608,153.73,153.7,7.39036893]
[1748684157466,18.59969608,153.73,153.7,0.8843483]
[1748684158278,18.59969608,153.73,153.7,7.39049335]
[1748684158987,18.59969608,153.73,153.7,7.39046265]
[1748684159570,18.59969608,153.73,153.7,0.8843483]
[1748684160286,18.59969608,153.73,153.7,7.39050639]
[1748684161203,58.62964886,153.79,153.7,7.39050639]
[1748684161204,153.40208919,153.8,153.72,18.59969608]
[1748684161389,18.59969608,153.79,153.74,18.59969608]
[1748684161772,18.59969608,153.79,153.75,0.14216157]
[1748684162879,10.42,153.82,153.77,18.74185765]
[1748684163206,10.42,153.82,153.78,18.59969608]
[1748684163207,18.59969608,153.82,153.78,18.59969608]
[1748684163569,18.59969608,153.83,153.78,18.59969608]
[1748684164176,18.59969608,153.82,153.78,18.59969608]
[1748684164569,18.59969608,153.82,153.78,25.10222652]
[1748684165987,18.59969608,153.83,153.78,25.10222652]
[1748684166964,18.59969608,153.83,153.78,65.08222652]
[1748684171399,6.49994492,153.85,153.78,65.08222652]
[1748684171604,18.59969608,153.83,153.78,65.08222652]
[1748684171903,18.59969608,153.83,153.8,6.50195058]
[1748684172098,18.59969608,153.84,153.8,6.50195058]
[1748684173804,18.59969608,153.85,153.81,18.59969608]
[1748684174103,18.59969608,153.86,153.81,18.59969608]
[1748684175114,18.59969608,153.85,153.81,18.59969608]
[1748684175277,18.59969608,153.86,153.81,18.59969608]
[1748684175679,9.27456021,153.87,153.83,18.59969608]
[1748684176005,9.27456021,153.87,153.84,18.59969608]
[1748684176909,18.59969608,153.85,153.82,41.5811]
[1748684177402,18.59969608,153.86,153.82,41.5811]
[1748684177980,18.59969608,153.86,153.82,48.08180438]
[1748684179083,18.59969608,153.86,153.82,26.72150046]
[1748684180683,27.87425629,153.87,153.82,26.72150046]
[1748684180888,9.27456021,153.87,153.83,18.74185765]
[1748684181314,9.27456021,153.87,153.86,18.74185765]
[1748684181488,9.27456021,153.87,153.85,39.96]
[1748684181804,9.27456021,153.87,153.82,8.12180438]
[1748684181805,18.59969608,153.86,153.82,8.12180438]
[1748684182881,27.87425629,153.87,153.82,26.72150046]
[1748684184381,27.87425629,153.87,153.81,39.96]
[1748684184382,18.59969608,153.85,153.81,46.46129338]
[1748684184607,18.59969608,153.84,153.81,39.96]
[1748684185082,18.59969608,153.86,153.81,65.06109531]
[1748684185282,18.59969608,153.86,153.81,25.10109531]
[1748684185589,18.59969608,153.86,153.81,65.04109531]
[1748684186299,9.27456021,153.87,153.83,18.59969608]
[1748684186898,9.27456021,153.87,153.84,6.50026001]
[1748684187093,9.27456021,153.87,153.84,25.09995609]
[1748684187796,9.27456021,153.87,153.84,6.50026001]
[1748684191101,9.27456021,153.87,153.85,6.64187013]
[1748684191308,9.27456021,153.87,153.86,18.74185765]
[1748684191494,7.70650005,153.9,153.86,18.59969608]
[1748684191994,26.30619613,153.9,153.86,0.14216157]
[1748684193102,26.30619613,153.9,153.86,6.64127848]
[1748684193905,18.59969608,153.91,153.88,0.14216157]
[1748684194203,18.59969608,153.92,153.88,0.14216157]
[1748684194511,42.89599685,153.95,153.88,0.14216157]
[1748684194512,18.59969608,153.93,153.88,18.74185765]
[1748684195027,18.59969608,153.94,153.9,6.49772579]
[1748684196293,18.59969608,153.95,153.91,0.14216157]
[1748684196493,18.59969608,153.94,153.89,65.03773919]
[1748684196712,18.59969608,153.93,153.89,0.14216157]
[1748684197017,18.59969608,153.93,153.9,39.94]
[1748684198405,25.0962313,153.93,153.9,39.94]
[1748684199818,25.09616461,153.93,153.9,39.94]
[1748684201597,18.59969608,153.92,153.9,39.94]
[1748684203631,25.09658995,153.92,153.9,39.94]
[1748684203935,18.59969608,153.92,153.9,39.94]
[1748684205324,29.60063211,153.96,153.9,46.43770479]
[1748684205325,18.59969608,153.93,153.9,46.43770479]
[1748684206201,18.59969608,153.93,153.9,39.94]
[1748684206737,18.59969608,153.92,153.9,39.94]
[1748684206909,18.59969608,153.92,153.88,46.41822977]
[1748684207433,18.59969608,153.9,153.86,0.14216157]
[1748684207622,6.49609073,153.94,153.85,25.08749608]
[1748684207828,18.59969608,153.9,153.86,40.06216157]
[1748684208504,18.59969608,153.91,153.86,65.16115746]
[1748684208706,6.49561545,153.95,153.88,18.74185765]
[1748684208907,18.59969608,153.94,153.89,18.59969608]
[1748684209449,18.59969608,153.94,153.88,0.14216157]
[1748684209450,18.59969608,153.95,153.9,58.51969608]
[1748684209740,150.15014508,153.97,153.92,18.59969608]
[1748684209741,18.59969608,153.97,153.92,18.59969608]
[1748684210635,18.59969608,153.97,153.93,6.49645942]
[1748684212639,18.59969608,153.96,153.93,6.49645942]
[1748684217147,18.59969608,153.97,153.93,6.49645942]
[1748684217351,9.68630166,154.0,153.93,25.0961555]
[1748684217352,18.59969608,153.98,153.93,25.0961555]
[1748684218730,18.59969608,153.98,153.93,6.49645942]
[1748684219049,6.49404796,153.99,153.93,6.49645942]
[1748684219050,18.59969608,153.97,153.93,6.49645942]
[1748684219235,18.59969608,153.98,153.93,25.0961555]
[1748684220122,18.59969608,153.97,153.93,6.49645942]
[1748684221221,44.59969608,153.94,153.86,1.5467]
[1748684221416,18.59969608,153.92,153.83,1.6615]
[1748684221643,18.59969608,153.84,153.8,10.38]
[1748684221851,33.9787,153.9,153.77,6.3844]
[1748684221852,18.59969608,153.83,153.77,12.88730692]
[1748684222029,18.59969608,153.83,153.77,97.467003]
[1748684222229,33.9787,153.9,153.81,18.59969608]
[1748684222421,18.59969608,153.86,153.8,18.59969608]
[1748684222620,25.09914865,153.86,153.8,18.59969608]
[1748684222856,18.59969608,153.85,153.8,18.59969608]
[1748684223024,18.59969608,153.85,153.81,0.14216157]
[1748684223229,18.59969608,153.85,153.8,18.59969608]
[1748684223734,25.09977105,153.85,153.8,18.59969608]
[1748684224435,25.09977105,153.85,153.81,0.14216157]
[1748684224630,25.09977105,153.85,153.8,18.59969608]
[1748684224833,25.09977105,153.85,153.81,0.14216157]
[1748684225640,25.10013745,153.84,153.81,0.14216157]
[1748684226726,18.59969608,153.83,153.81,0.14216157]
[1748684226965,22.74370278,153.89,153.82,0.14216157]
[1748684227136,22.74370278,153.89,153.82,0.28432314]
[1748684227338,18.59969608,153.86,153.82,0.28432314]
[1748684227647,18.59969608,153.85,153.82,0.28432314]
[1748684227951,18.59969608,153.85,153.79,6.50232529]
[1748684228152,18.59969608,153.83,153.8,18.933972]
[1748684230153,18.59969608,153.81,153.78,18.933972]
[1748684230365,18.59969608,153.81,153.78,18.64964886]
[1748684230652,18.59969608,153.81,153.79,0.14216157]
[1748684231837,18.59969608,153.82,153.79,0.14216157]
[1748684232355,18.59969608,153.82,153.76,12.0415]
[1748684232356,18.59969608,153.8,153.76,12.0415]
[1748684232536,6.50123522,153.82,153.76,12.0415]
[1748684232537,18.59969608,153.79,153.76,12.0415]
[1748684232738,18.59969608,153.79,153.77,0.14216157]
[1748684233142,18.59969608,153.8,153.77,6.6453378]
[1748684233344,10.4,153.85,153.79,0.14216157]
[1748684233546,18.59969608,153.82,153.79,0.14216157]
[1748684234249,18.59969608,153.81,153.79,0.14216157]
[1748684234453,18.59969608,153.82,153.79,0.14216157]
[1748684235356,18.59969608,153.82,153.79,6.6442243]
[1748684235942,18.59969608,153.85,153.8,18.59969608]
[1748684236753,18.59969608,153.84,153.79,25.24392038]
[1748684238066,18.59969608,153.83,153.79,6.6442243]
[1748684239788,18.59969608,153.82,153.79,0.14216157]
[1748684239945,18.59969608,153.81,153.79,0.14216157]
[1748684240148,6.50072089,153.83,153.79,0.14216157]
[1748684240149,18.59969608,153.82,153.79,6.64447547]
[1748684242851,18.59969608,153.82,153.79,0.14216157]
[1748684243066,18.59969608,153.81,153.77,32.50310544]
[1748684243264,18.59969608,153.81,153.78,0.14216157]
[1748684244968,18.59969608,153.81,153.78,6.64494439]
[1748684246173,18.59969608,153.82,153.78,6.64494439]
[1748684247061,6.49976442,153.86,153.8,0.14216157]
[1748684247366,18.59969608,153.84,153.8,0.14216157]
[1748684248358,8.89572178,153.87,153.8,0.14216157]
[1748684248359,18.59969608,153.85,153.81,6.50152785]
[1748684249682,18.59969608,153.86,153.82,6.50070707]
[1748684249866,18.59969608,153.86,153.83,0.14216157]
[1748684250054,8.89572178,153.87,153.83,0.14216157]
[1748684250261,18.59969608,153.86,153.83,0.14216157]
[1748684251563,8.89572178,153.87,153.82,0.14216157]
[1748684251564,18.59969608,153.85,153.82,0.14216157]
[1748684252163,18.59969608,153.85,153.82,6.64317018]
[1748684253687,18.59969608,153.85,153.82,0.14216157]
[1748684254480,18.59969608,153.85,153.82,6.6431616]
[1748684254689,18.59969608,153.85,153.82,0.14216157]
[1748684255181,18.59969608,153.84,153.8,18.933972]
[1748684256180,18.59969608,153.84,153.8,25.4357493]
[1748684257510,18.59969608,153.85,153.8,44.03544538]
[1748684257796,6.49959539,153.86,153.8,44.03544538]
[1748684258097,18.59969608,153.85,153.8,44.03544538]
[1748684258996,15.39481265,153.87,153.78,26.6960239]
[1748684258997,18.59969608,153.82,153.78,56.88255088]
[1748684259792,18.59969608,153.82,153.79,0.14216157]
[1748684260671,22.74795268,153.86,153.79,0.14216157]
[1748684260672,18.59969608,153.81,153.79,0.14216157]
[1748684265605,18.59969608,153.82,153.79,6.64437588]
[1748684267605,18.59969608,153.81,153.78,0.14216157]
[1748684270402,18.59969608,153.81,153.78,6.64464106]
[1748684273126,35.5433573,153.87,153.78,6.64464106]
[1748684273127,19.29572178,153.87,153.8,0.14216157]
[1748684273306,18.59969608,153.85,153.8,18.74185765]
[1748684273500,18.59969608,153.86,153.8,18.74185765]
[1748684274699,18.59969608,153.86,153.81,18.79181043]
[1748684275019,18.59969608,153.86,153.82,0.14216157]
[1748684275202,8.89572178,153.87,153.78,48.3594905]
[1748684275203,18.59969608,153.83,153.78,48.3594905]
[1748684275403,18.59969608,153.82,153.79,0.14216157]
[1748684276628,41.39495521,153.87,153.78,6.50278103]
[1748684276629,18.59969608,153.81,153.78,6.50278103]
[1748684278224,18.59969608,153.82,153.78,6.50278103]
[1748684278393,18.59969608,153.82,153.78,0.14216157]